[Event "*** Titled Tuesday Blitz"]
[Site "Chess.com"]
[Date "2020.10.20"]
[Round "8"]
[White "vova-79"]
[Black "Khnykin_Nikolay"]
[Result "1-0"]
[WhiteElo "2491"]
[BlackElo "2054"]
[TimeControl "180+1"]
[EndTime "11:37:27 PDT"]
[Termination "vova-79 won on time"]

1. d4 {[%clk 0:02:58.3]} 1... e6 {[%clk 0:02:58.9]} 2. c4 {[%clk 0:02:56.5]}
2... b6 {[%clk 0:02:58.2]} 3. a3 {[%clk 0:02:53.2]} 3... Bb7 {[%clk 0:02:57.7]}
4. Nc3 {[%clk 0:02:52.7]} 4... Nf6 {[%clk 0:02:58]} 5. Bg5 {[%clk 0:02:51.7]}
5... Be7 {[%clk 0:02:57.3]} 6. e3 {[%clk 0:02:51.6]} 6... d6 {[%clk 0:02:57.1]}
7. Nf3 {[%clk 0:02:51.4]} 7... Nbd7 {[%clk 0:02:56.6]} 8. Be2 {[%clk 0:02:51]}
8... c5 {[%clk 0:02:55.4]} 9. O-O {[%clk 0:02:50]} 9... a6 {[%clk 0:02:55]} 10.
b4 {[%clk 0:02:47.2]} 10... O-O {[%clk 0:02:51]} 11. Rb1 {[%clk 0:02:45.7]}
11... h6 {[%clk 0:02:49.8]} 12. Bh4 {[%clk 0:02:44.6]} 12... Qc7 {[%clk
0:02:44.2]} 13. Bg3 {[%clk 0:02:42.8]} 13... Rac8 {[%clk 0:02:35.6]} 14. dxc5
{[%clk 0:02:36.1]} 14... bxc5 {[%clk 0:02:33.4]} 15. b5 {[%clk 0:02:34.9]} 15...
Ne4 {[%clk 0:01:58.6]} 16. Nxe4 {[%clk 0:02:30.3]} 16... Bxe4 {[%clk 0:01:57.3]}
17. Bd3 {[%clk 0:02:30.6]} 17... Bxd3 {[%clk 0:01:54.5]} 18. Qxd3 {[%clk
0:02:31.5]} 18... axb5 {[%clk 0:01:54.5]} 19. Rxb5 {[%clk 0:02:17.9]} 19... Qc6
{[%clk 0:01:53.6]} 20. Rd1 {[%clk 0:02:04.4]} 20... Nf6 {[%clk 0:01:43.3]} 21.
a4 {[%clk 0:01:40.7]} 21... Rfd8 {[%clk 0:01:41.6]} 22. Ra1 {[%clk 0:01:38.8]}
22... d5 {[%clk 0:01:40.5]} 23. Ne5 {[%clk 0:01:36.3]} 23... Qe8 {[%clk
0:01:34]} 24. cxd5 {[%clk 0:01:33]} 24... Rxd5 {[%clk 0:01:25.3]} 25. Qc4 {[%clk
0:01:27.5]} 25... Rcd8 {[%clk 0:01:23.8]} 26. h3 {[%clk 0:01:25.7]} 26... Nh5
{[%clk 0:01:15.7]} 27. Bf4 {[%clk 0:01:19.7]} 27... g5 {[%clk 0:01:10.3]} 28.
Qe2 {[%clk 0:01:06.7]} 28... f5 {[%clk 0:00:18.7]} 29. Bh2 {[%clk 0:00:56.8]}
29... Bf6 {[%clk 0:00:16.4]} 30. f4 {[%clk 0:00:52.5]} 30... Rd2 {[%clk
0:00:15.3]} 31. Qf1 {[%clk 0:00:35.1]} 31... Bxe5 {[%clk 0:00:13]} 32. fxe5
{[%clk 0:00:33.7]} 32... Qc6 {[%clk 0:00:12.4]} 33. Rab1 {[%clk 0:00:19.6]}
33... Rc2 {[%clk 0:00:11.4]} 34. Rb8 {[%clk 0:00:17.5]} 34... Rxb8 {[%clk
0:00:10.4]} 35. Rxb8+ {[%clk 0:00:16.2]} 35... Kf7 {[%clk 0:00:10.5]} 36. a5
{[%clk 0:00:15.7]} 36... Ra2 {[%clk 0:00:09.2]} 37. a6 {[%clk 0:00:14.6]} 37...
Rxa6 {[%clk 0:00:07.6]} 38. Qb1 {[%clk 0:00:11.1]} 38... Ra3 {[%clk 0:00:04]}
39. Qb7+ {[%clk 0:00:09.6]} 39... Qxb7 {[%clk 0:00:03.5]} 40. Rxb7+ {[%clk
0:00:10.5]} 40... Kg6 {[%clk 0:00:03.4]} 41. g4 {[%clk 0:00:10.8]} 41... Ng7
{[%clk 0:00:02.7]} 42. Rc7 {[%clk 0:00:08.7]} 42... Rxe3 {[%clk 0:00:01.6]} 43.
Rxc5 {[%clk 0:00:08.1]} 1-0

[Event "*** Titled Tuesday Blitz"]
[Site "Chess.com"]
[Date "2020.10.20"]
[Round "8"]
[White "Unknown_IM"]
[Black "Sacbutt"]
[Result "1/2-1/2"]
[WhiteElo "2357"]
[BlackElo "2285"]
[TimeControl "180+1"]
[EndTime "11:37:28 PDT"]
[Termination "Game drawn by repetition"]

1. e4 {[%clk 0:03:00.9]} 1... c5 {[%clk 0:02:59.3]} 2. Nc3 {[%clk 0:02:54.4]}
2... Nc6 {[%clk 0:02:58.4]} 3. Bb5 {[%clk 0:02:53.3]} 3... g6 {[%clk 0:02:54.9]}
4. Bxc6 {[%clk 0:02:53.8]} 4... bxc6 {[%clk 0:02:53.6]} 5. d3 {[%clk 0:02:52.4]}
5... Bg7 {[%clk 0:02:53.5]} 6. Be3 {[%clk 0:02:52.2]} 6... d6 {[%clk 0:02:52.9]}
7. Qd2 {[%clk 0:02:51.6]} 7... e5 {[%clk 0:02:51.8]} 8. Nge2 {[%clk 0:02:50.7]}
8... Be6 {[%clk 0:02:51.5]} 9. O-O {[%clk 0:02:49.5]} 9... Nf6 {[%clk
0:02:49.5]} 10. h3 {[%clk 0:02:45.6]} 10... O-O {[%clk 0:02:40.8]} 11. f4 {[%clk
0:02:44]} 11... exf4 {[%clk 0:02:33.1]} 12. Nxf4 {[%clk 0:02:39.3]} 12... Qe7
{[%clk 0:02:27.9]} 13. Rae1 {[%clk 0:02:17.8]} 13... Rab8 {[%clk 0:02:21.8]} 14.
b3 {[%clk 0:02:13]} 14... Nd7 {[%clk 0:02:16.2]} 15. Nfe2 {[%clk 0:01:31.1]}
15... d5 {[%clk 0:02:11.8]} 16. Bh6 {[%clk 0:01:29.7]} 16... Rbd8 {[%clk
0:02:02.8]} 17. Bxg7 {[%clk 0:01:18.3]} 17... Kxg7 {[%clk 0:02:03.7]} 18. exd5
{[%clk 0:01:13.3]} 18... cxd5 {[%clk 0:02:01.4]} 19. Nf4 {[%clk 0:01:12.7]}
19... d4 {[%clk 0:01:58.4]} 20. Ne4 {[%clk 0:00:51.5]} 20... Rde8 {[%clk
0:01:36.5]} 21. Ng5 {[%clk 0:00:47.7]} 21... Qd6 {[%clk 0:01:28.8]} 22. Nfxe6+
{[%clk 0:00:15.7]} 22... fxe6 {[%clk 0:01:29.7]} 23. Rxf8 {[%clk 0:00:14.9]}
23... Nxf8 {[%clk 0:01:27.9]} 24. Qf2 {[%clk 0:00:14]} 24... Qe7 {[%clk
0:01:23.6]} 25. Ne4 {[%clk 0:00:13.4]} 25... Nd7 {[%clk 0:01:14.8]} 26. Qg3
{[%clk 0:00:13.7]} 26... e5 {[%clk 0:01:09.8]} 27. Kh2 {[%clk 0:00:13.9]} 27...
Nf6 {[%clk 0:01:02.2]} 28. Nd2 {[%clk 0:00:09.6]} 28... Nh5 {[%clk 0:00:52.2]}
29. Qf3 {[%clk 0:00:08.9]} 29... Rf8 {[%clk 0:00:49]} 30. Qd5 {[%clk 0:00:08.3]}
30... Re8 {[%clk 0:00:42.3]} 31. Nc4 {[%clk 0:00:07.6]} 31... Nf6 {[%clk
0:00:35.3]} 32. Qf3 {[%clk 0:00:06]} 32... Qc7 {[%clk 0:00:32.5]} 33. Kh1 {[%clk
0:00:05.3]} 33... Nd7 {[%clk 0:00:23.3]} 34. Rf1 {[%clk 0:00:04.5]} 34... Rf8
{[%clk 0:00:22.3]} 35. Qe2 {[%clk 0:00:04.6]} 35... Rxf1+ {[%clk 0:00:21.7]} 36.
Qxf1 {[%clk 0:00:05.5]} 36... Nf6 {[%clk 0:00:20]} 37. Qe2 {[%clk 0:00:04.1]}
37... e4 {[%clk 0:00:18.7]} 38. dxe4 {[%clk 0:00:03.9]} 38... Qf4 {[%clk
0:00:19.1]} 39. e5 {[%clk 0:00:03.4]} 39... Ne4 {[%clk 0:00:17.3]} 40. Kg1
{[%clk 0:00:02.6]} 40... Qc1+ {[%clk 0:00:14.1]} 41. Kh2 {[%clk 0:00:02.3]}
41... Qf4+ {[%clk 0:00:13.6]} 42. Kg1 {[%clk 0:00:03.2]} 42... Qc1+ {[%clk
0:00:10.8]} 43. Kh2 {[%clk 0:00:03.4]} 43... Qf4+ {[%clk 0:00:11.3]} 44. Kg1
{[%clk 0:00:03.1]} 1/2-1/2

[Event "*** Titled Tuesday Blitz"]
[Site "Chess.com"]
[Date "2020.10.20"]
[Round "8"]
[White "JoachimMouhamad"]
[Black "Quiet_Desperation"]
[Result "0-1"]
[WhiteElo "2285"]
[BlackElo "1855"]
[TimeControl "180+1"]
[EndTime "11:37:29 PDT"]
[Termination "Quiet_Desperation won on time"]

1. e4 {[%clk 0:02:56.9]} 1... e6 {[%clk 0:02:59.5]} 2. d4 {[%clk 0:02:54.8]}
2... d5 {[%clk 0:02:59.5]} 3. Nc3 {[%clk 0:02:55.1]} 3... Nf6 {[%clk 0:02:59.2]}
4. e5 {[%clk 0:02:54.2]} 4... Nfd7 {[%clk 0:02:59]} 5. f4 {[%clk 0:02:53.9]}
5... c5 {[%clk 0:02:59.3]} 6. Nf3 {[%clk 0:02:53.9]} 6... Nc6 {[%clk 0:02:59.6]}
7. Be3 {[%clk 0:02:54.2]} 7... Be7 {[%clk 0:02:59.7]} 8. Qd2 {[%clk 0:02:53.2]}
8... O-O {[%clk 0:02:59.5]} 9. dxc5 {[%clk 0:02:53.1]} 9... Nxc5 {[%clk
0:02:57.8]} 10. O-O-O {[%clk 0:02:52.8]} 10... a6 {[%clk 0:02:57.9]} 11. Kb1
{[%clk 0:02:35.5]} 11... b5 {[%clk 0:02:57.5]} 12. Bd3 {[%clk 0:02:32.7]} 12...
b4 {[%clk 0:02:55.1]} 13. Ne2 {[%clk 0:02:32.4]} 13... Nxd3 {[%clk 0:02:53.8]}
14. cxd3 {[%clk 0:02:23.4]} 14... a5 {[%clk 0:02:54]} 15. Rc1 {[%clk 0:02:18.6]}
15... Qd7 {[%clk 0:02:39.5]} 16. Ned4 {[%clk 0:02:16]} 16... Nxd4 {[%clk
0:02:39.1]} 17. Nxd4 {[%clk 0:02:14.2]} 17... Bb7 {[%clk 0:02:35.8]} 18. Rc2
{[%clk 0:02:05.7]} 18... Rfc8 {[%clk 0:02:30.4]} 19. Rhc1 {[%clk 0:02:05.6]}
19... Rxc2 {[%clk 0:02:24.4]} 20. Rxc2 {[%clk 0:02:05.1]} 20... Rc8 {[%clk
0:02:24.4]} 21. Rxc8+ {[%clk 0:02:03.6]} 21... Qxc8 {[%clk 0:02:22.7]} 22. Qc2
{[%clk 0:02:00.3]} 22... Qd7 {[%clk 0:02:20.1]} 23. g3 {[%clk 0:01:44.2]} 23...
h6 {[%clk 0:02:20.1]} 24. h4 {[%clk 0:01:42.4]} 24... Bd8 {[%clk 0:02:08.7]} 25.
Qc5 {[%clk 0:01:37.2]} 25... Ba6 {[%clk 0:01:58.4]} 26. Kc2 {[%clk 0:01:33.1]}
26... Qa4+ {[%clk 0:01:56.9]} 27. Nb3 {[%clk 0:01:21.5]} 27... Qxa2 {[%clk
0:01:54.7]} 28. Nc1 {[%clk 0:00:42.2]} 28... Qa4+ {[%clk 0:01:50.3]} 29. b3
{[%clk 0:00:41.9]} 29... Qd7 {[%clk 0:01:43.5]} 30. h5 {[%clk 0:00:34.2]} 30...
g6 {[%clk 0:01:25]} 31. hxg6 {[%clk 0:00:33.6]} 31... fxg6 {[%clk 0:01:25.1]}
32. Qa7 {[%clk 0:00:27.3]} 32... Qc6+ {[%clk 0:01:18.1]} 33. Qc5 {[%clk
0:00:26.9]} 33... Qxc5+ {[%clk 0:01:15.7]} 34. Bxc5 {[%clk 0:00:26.8]} 34... g5
{[%clk 0:01:15]} 35. Ne2 {[%clk 0:00:20.3]} 35... Kf7 {[%clk 0:01:12.4]} 36. Be3
{[%clk 0:00:14.1]} 36... g4 {[%clk 0:01:09.1]} 37. Bc5 {[%clk 0:00:13.3]} 37...
h5 {[%clk 0:01:04.1]} 38. Bf2 {[%clk 0:00:12.6]} 38... Bc8 {[%clk 0:00:40.7]}
39. Kd2 {[%clk 0:00:11.8]} 39... Bd7 {[%clk 0:00:40.9]} 40. Kc2 {[%clk
0:00:11.7]} 40... a4 {[%clk 0:00:34.1]} 41. bxa4 {[%clk 0:00:12.1]} 41... Bxa4+
{[%clk 0:00:34.5]} 42. Kb2 {[%clk 0:00:13]} 42... Bb5 {[%clk 0:00:32.7]} 43. Kc2
{[%clk 0:00:12.1]} 43... Be7 {[%clk 0:00:29.6]} 44. Nc1 {[%clk 0:00:10.2]} 44...
Ba4+ {[%clk 0:00:27.8]} 45. Kd2 {[%clk 0:00:09.4]} 45... Kg6 {[%clk 0:00:26.8]}
46. Be1 {[%clk 0:00:07.9]} 46... Kf5 {[%clk 0:00:23.2]} 47. Ne2 {[%clk
0:00:07.4]} 47... Bc5 {[%clk 0:00:20.2]} 48. Kc1 {[%clk 0:00:07.3]} 48... b3
{[%clk 0:00:17]} 49. Kb2 {[%clk 0:00:06.2]} 49... Bb5 {[%clk 0:00:13.7]} 50. Kc3
{[%clk 0:00:03.8]} 50... b2 {[%clk 0:00:13.2]} 51. Kxb2 {[%clk 0:00:02.6]} 51...
Bxd3 {[%clk 0:00:13.5]} 0-1

[Event "*** Titled Tuesday Blitz"]
[Site "Chess.com"]
[Date "2020.10.20"]
[Round "8"]
[White "dosto07"]
[Black "kleopl"]
[Result "0-1"]
[WhiteElo "2330"]
[BlackElo "2444"]
[TimeControl "180+1"]
[EndTime "11:37:30 PDT"]
[Termination "kleopl won by resignation"]

1. e4 {[%clk 0:03:00.2]} 1... c6 {[%clk 0:02:57.8]} 2. d4 {[%clk 0:02:59.1]}
2... d5 {[%clk 0:02:58.7]} 3. Nc3 {[%clk 0:02:59.1]} 3... a6 {[%clk 0:02:58.8]}
4. Nf3 {[%clk 0:02:55.5]} 4... Bg4 {[%clk 0:02:58.4]} 5. h3 {[%clk 0:02:52.4]}
5... Bxf3 {[%clk 0:02:55.6]} 6. Qxf3 {[%clk 0:02:51.4]} 6... e6 {[%clk
0:02:56.1]} 7. Be3 {[%clk 0:02:18.3]} 7... Nf6 {[%clk 0:02:55.8]} 8. Bd3 {[%clk
0:02:15.6]} 8... dxe4 {[%clk 0:02:50.9]} 9. Nxe4 {[%clk 0:02:14.1]} 9... Nxe4
{[%clk 0:02:49.2]} 10. Bxe4 {[%clk 0:02:10.5]} 10... Nd7 {[%clk 0:02:49.3]} 11.
O-O-O {[%clk 0:02:06.5]} 11... Nf6 {[%clk 0:02:44.5]} 12. Bd3 {[%clk 0:02:00.8]}
12... Qd5 {[%clk 0:02:44.2]} 13. Qxd5 {[%clk 0:01:56.9]} 13... cxd5 {[%clk
0:02:44.5]} 14. Kb1 {[%clk 0:01:55.3]} 14... Be7 {[%clk 0:02:43.8]} 15. g4
{[%clk 0:01:55.1]} 15... Kd7 {[%clk 0:02:40.5]} 16. c3 {[%clk 0:01:53.6]} 16...
h5 {[%clk 0:02:34]} 17. g5 {[%clk 0:01:52.9]} 17... Ne8 {[%clk 0:02:34.1]} 18.
h4 {[%clk 0:01:51.7]} 18... g6 {[%clk 0:02:31.3]} 19. a4 {[%clk 0:01:41.3]}
19... Bd6 {[%clk 0:02:30.8]} 20. c4 {[%clk 0:01:37.1]} 20... dxc4 {[%clk
0:02:26.7]} 21. Bxc4 {[%clk 0:01:37]} 21... Nc7 {[%clk 0:02:26.9]} 22. d5 {[%clk
0:01:24.4]} 22... exd5 {[%clk 0:02:04.9]} 23. Bxd5 {[%clk 0:01:23.9]} 23... Nxd5
{[%clk 0:02:05.8]} 24. Rxd5 {[%clk 0:01:23.2]} 24... Kc6 {[%clk 0:02:06]} 25.
Rhd1 {[%clk 0:01:13]} 25... Rad8 {[%clk 0:02:05.7]} 26. R5d3 {[%clk 0:01:00.4]}
26... b5 {[%clk 0:01:58.2]} 27. Bd4 {[%clk 0:00:49.4]} 27... Rhe8 {[%clk
0:01:49.8]} 28. Bf6 {[%clk 0:00:47.2]} 28... Rd7 {[%clk 0:01:49.5]} 29. Rc1+
{[%clk 0:00:43.3]} 29... Kb7 {[%clk 0:01:47.9]} 30. axb5 {[%clk 0:00:43]} 30...
axb5 {[%clk 0:01:47.8]} 31. Rd5 {[%clk 0:00:41.9]} 31... b4 {[%clk 0:01:39.6]}
32. Rb5+ {[%clk 0:00:35.4]} 32... Ka6 {[%clk 0:01:37.6]} 33. Rd5 {[%clk
0:00:32.8]} 33... Re6 {[%clk 0:01:36.1]} 34. Ka2 {[%clk 0:00:30.8]} 34... Kb7
{[%clk 0:01:31.1]} 35. Kb3 {[%clk 0:00:30.5]} 35... Rc7 {[%clk 0:01:24.7]} 36.
Rxc7+ {[%clk 0:00:20.2]} 36... Kxc7 {[%clk 0:01:25.6]} 37. Kc4 {[%clk
0:00:18.9]} 37... Re4+ {[%clk 0:01:22.1]} 38. Rd4 {[%clk 0:00:18.7]} 38... Re2
{[%clk 0:01:20.2]} 39. Kb5 {[%clk 0:00:10.4]} 39... Rxf2 {[%clk 0:01:17.7]} 40.
Rc4+ {[%clk 0:00:09.5]} 40... Kd7 {[%clk 0:01:17.7]} 41. Rc1 {[%clk 0:00:04.6]}
41... Rf5+ {[%clk 0:01:14.6]} 42. Kb6 {[%clk 0:00:04]} 42... Rd5 {[%clk
0:01:03.7]} 43. Ra1 {[%clk 0:00:03.3]} 43... Bg3 {[%clk 0:01:01]} 44. Ra7+
{[%clk 0:00:02.7]} 44... Ke6 {[%clk 0:01:01.1]} 45. Re7+ {[%clk 0:00:02.8]}
45... Kf5 {[%clk 0:01:01.4]} 46. Rxf7 {[%clk 0:00:03.7]} 46... Bxh4 {[%clk
0:00:59.1]} 47. Rf8 {[%clk 0:00:04.6]} 47... Bxg5 {[%clk 0:00:55.9]} 48. Be7+
{[%clk 0:00:04.2]} 48... Kg4 {[%clk 0:00:55.8]} 49. Bxb4 {[%clk 0:00:05.1]}
49... Be3+ {[%clk 0:00:54.5]} 50. Kc6 {[%clk 0:00:04.8]} 50... Rf5 {[%clk
0:00:52.8]} 51. Re8 {[%clk 0:00:02.7]} 51... Bf2 {[%clk 0:00:51.7]} 52. Bd6
{[%clk 0:00:03.6]} 52... g5 {[%clk 0:00:49.8]} 53. b4 {[%clk 0:00:04.1]} 53...
h4 {[%clk 0:00:49.6]} 54. b5 {[%clk 0:00:04.6]} 54... Bg3 {[%clk 0:00:46.7]} 55.
Re2 {[%clk 0:00:03.4]} 55... Rf6 {[%clk 0:00:42.9]} 56. Re4+ {[%clk 0:00:02.5]}
56... Kh5 {[%clk 0:00:42.1]} 57. Rd4 {[%clk 0:00:03.4]} 57... h3 {[%clk
0:00:39.5]} 58. b6 {[%clk 0:00:03.2]} 58... h2 {[%clk 0:00:39.2]} 59. b7 {[%clk
0:00:02.3]} 59... h1=Q+ {[%clk 0:00:38.8]} 60. Kc7 {[%clk 0:00:02.7]} 60... Rxd6
{[%clk 0:00:38.3]} 61. Rxd6 {[%clk 0:00:03.5]} 61... Bxd6+ {[%clk 0:00:37.9]}
62. Kxd6 {[%clk 0:00:03.7]} 62... Qxb7 {[%clk 0:00:37.6]} 0-1

[Event "*** Titled Tuesday Blitz"]
[Site "Chess.com"]
[Date "2020.10.20"]
[Round "8"]
[White "KatarinaOstojic"]
[Black "shnitez"]
[Result "1-0"]
[WhiteElo "2346"]
[BlackElo "2433"]
[TimeControl "180+1"]
[EndTime "11:37:31 PDT"]
[Termination "KatarinaOstojic won on time"]

1. d4 {[%clk 0:03:00.9]} 1... Nf6 {[%clk 0:02:57.9]} 2. Nf3 {[%clk 0:03:00.7]}
2... d5 {[%clk 0:02:57.3]} 3. c4 {[%clk 0:03:00.4]} 3... e6 {[%clk 0:02:55.7]}
4. Nc3 {[%clk 0:03:00.1]} 4... Be7 {[%clk 0:02:49.6]} 5. Bg5 {[%clk 0:02:58.4]}
5... O-O {[%clk 0:02:46.8]} 6. e3 {[%clk 0:02:58.2]} 6... Nbd7 {[%clk
0:02:46.3]} 7. Rc1 {[%clk 0:02:57.4]} 7... a6 {[%clk 0:02:43.2]} 8. Be2 {[%clk
0:02:54.5]} 8... dxc4 {[%clk 0:02:43]} 9. Bxc4 {[%clk 0:02:55.4]} 9... b5 {[%clk
0:02:43.2]} 10. Bd3 {[%clk 0:02:55.9]} 10... Bb7 {[%clk 0:02:43.6]} 11. O-O
{[%clk 0:02:55.8]} 11... c5 {[%clk 0:02:43.9]} 12. a4 {[%clk 0:02:55.8]} 12...
b4 {[%clk 0:02:26.1]} 13. Nb1 {[%clk 0:02:53.4]} 13... Bxf3 {[%clk 0:02:23.5]}
14. Qxf3 {[%clk 0:02:52.9]} 14... cxd4 {[%clk 0:02:24]} 15. exd4 {[%clk
0:02:53.8]} 15... Qa5 {[%clk 0:02:22.2]} 16. Bxf6 {[%clk 0:02:47.7]} 16... Nxf6
{[%clk 0:02:22.1]} 17. b3 {[%clk 0:02:45]} 17... Rad8 {[%clk 0:02:14.7]} 18.
Rfd1 {[%clk 0:02:41.8]} 18... Rd6 {[%clk 0:02:02.3]} 19. Qb7 {[%clk 0:02:34.1]}
19... Re8 {[%clk 0:01:44.3]} 20. Nd2 {[%clk 0:02:27.8]} 20... Rxd4 {[%clk
0:01:35.1]} 21. Nc4 {[%clk 0:02:26.6]} 21... Qd5 {[%clk 0:01:33.7]} 22. Qxd5
{[%clk 0:02:08.7]} 22... Rxd5 {[%clk 0:01:34.6]} 23. Ne3 {[%clk 0:02:07]} 23...
Rd6 {[%clk 0:01:30.8]} 24. Nc4 {[%clk 0:02:02.5]} 24... Rd7 {[%clk 0:01:09.9]}
25. Nb6 {[%clk 0:01:59.5]} 25... Ra7 {[%clk 0:01:02.3]} 26. Nc8 {[%clk
0:01:53.4]} 26... Ra8 {[%clk 0:00:59.2]} 27. Nb6 {[%clk 0:01:53.6]} 27... Ra7
{[%clk 0:00:47]} 28. Nc8 {[%clk 0:01:51.7]} 28... Ra8 {[%clk 0:00:37.5]} 29. Nb6
{[%clk 0:01:50.7]} 29... Rab8 {[%clk 0:00:37.2]} 30. a5 {[%clk 0:01:50.2]} 30...
Bd8 {[%clk 0:00:37.6]} 31. Rc6 {[%clk 0:01:43.1]} 31... Bxb6 {[%clk 0:00:36.4]}
32. Rxb6 {[%clk 0:01:36.3]} 32... Rxb6 {[%clk 0:00:30.1]} 33. axb6 {[%clk
0:01:37.2]} 33... Nd5 {[%clk 0:00:27.2]} 34. b7 {[%clk 0:01:28.5]} 34... a5
{[%clk 0:00:26]} 35. Bb5 {[%clk 0:01:22.2]} 35... Rb8 {[%clk 0:00:24.4]} 36. Bc6
{[%clk 0:01:20.1]} 36... Kf8 {[%clk 0:00:07.6]} 37. Ra1 {[%clk 0:00:55.7]} 37...
Ne7 {[%clk 0:00:05.1]} 38. Bf3 {[%clk 0:00:53.3]} 38... Ke8 {[%clk 0:00:04.1]}
39. Rxa5 {[%clk 0:00:52.5]} 39... Kd7 {[%clk 0:00:05]} 40. Rb5 {[%clk
0:00:46.8]} 40... Nd5 {[%clk 0:00:03.2]} 41. Bxd5 {[%clk 0:00:42.1]} 41... exd5
{[%clk 0:00:04.1]} 42. Rxd5+ {[%clk 0:00:40.2]} 42... Kc6 {[%clk 0:00:04.4]} 43.
Rf5 {[%clk 0:00:37.3]} 43... Rxb7 {[%clk 0:00:04.5]} 44. Rf4 {[%clk 0:00:36.8]}
44... Kb5 {[%clk 0:00:03.7]} 45. g3 {[%clk 0:00:36.1]} 45... Rc7 {[%clk
0:00:03.6]} 46. Kg2 {[%clk 0:00:32]} 46... f6 {[%clk 0:00:03.3]} 47. Rf5+ {[%clk
0:00:31.6]} 47... Rc5 {[%clk 0:00:02.3]} 48. Rf4 {[%clk 0:00:28.6]} 48... Rc3
{[%clk 0:00:02.4]} 49. Rf3 {[%clk 0:00:28.7]} 49... Kc5 {[%clk 0:00:01.2]} 50.
Rf5+ {[%clk 0:00:21.9]} 50... Kc6 {[%clk 0:00:01.4]} 51. Rf3 {[%clk 0:00:21.4]}
51... Kd5 {[%clk 0:00:01.2]} 52. Rf5+ {[%clk 0:00:20.7]} 52... Kd6 {[%clk
0:00:01.3]} 53. Rf3 {[%clk 0:00:20.4]} 1-0

[Event "*** Titled Tuesday Blitz"]
[Site "Chess.com"]
[Date "2020.10.20"]
[Round "8"]
[White "PawnEatingZombie"]
[Black "akanga001"]
[Result "0-1"]
[WhiteElo "2146"]
[BlackElo "1886"]
[TimeControl "180+1"]
[EndTime "11:37:32 PDT"]
[Termination "akanga001 won on time"]

1. d4 {[%clk 0:03:00.9]} 1... d5 {[%clk 0:02:43]} 2. c4 {[%clk 0:02:59.9]} 2...
e6 {[%clk 0:02:43.1]} 3. Nc3 {[%clk 0:03:00.1]} 3... Nf6 {[%clk 0:02:42.2]} 4.
cxd5 {[%clk 0:03:00.6]} 4... exd5 {[%clk 0:02:41.5]} 5. Bg5 {[%clk 0:03:00.8]}
5... c6 {[%clk 0:02:40.9]} 6. e3 {[%clk 0:03:01.1]} 6... Be7 {[%clk 0:02:41.1]}
7. Bd3 {[%clk 0:03:00.9]} 7... O-O {[%clk 0:02:41.3]} 8. Qc2 {[%clk 0:02:59.8]}
8... Nbd7 {[%clk 0:02:38.2]} 9. Nge2 {[%clk 0:02:58.9]} 9... Re8 {[%clk
0:02:37.7]} 10. f3 {[%clk 0:02:58.7]} 10... Nf8 {[%clk 0:02:37.2]} 11. O-O
{[%clk 0:02:58.2]} 11... g6 {[%clk 0:02:36.6]} 12. Rad1 {[%clk 0:02:46.5]} 12...
Ne6 {[%clk 0:02:36.4]} 13. Bh4 {[%clk 0:02:45.2]} 13... Ng7 {[%clk 0:02:35.6]}
14. Bf2 {[%clk 0:02:23.5]} 14... Bf5 {[%clk 0:02:32.5]} 15. e4 {[%clk
0:02:21.8]} 15... dxe4 {[%clk 0:02:31.5]} 16. fxe4 {[%clk 0:02:21.5]} 16... Bg4
{[%clk 0:02:31.1]} 17. h3 {[%clk 0:01:52.6]} 17... Be6 {[%clk 0:02:28.7]} 18. a3
{[%clk 0:01:41.3]} 18... Qb6 {[%clk 0:02:24.6]} 19. Kh1 {[%clk 0:01:37.8]} 19...
Bb3 {[%clk 0:02:22.6]} 20. Qc1 {[%clk 0:01:31.2]} 20... Bxd1 {[%clk 0:02:20.8]}
21. Nxd1 {[%clk 0:01:16.7]} 21... Qa5 {[%clk 0:02:11.5]} 22. Ndc3 {[%clk
0:01:13.9]} 22... Rad8 {[%clk 0:02:07.5]} 23. e5 {[%clk 0:01:12.8]} 23... Nd5
{[%clk 0:02:04.8]} 24. Ne4 {[%clk 0:01:12.8]} 24... Nf5 {[%clk 0:01:59.2]} 25.
g4 {[%clk 0:01:08.5]} 25... Nh4 {[%clk 0:01:53.1]} 26. Qh6 {[%clk 0:00:54.7]}
26... Nf3 {[%clk 0:01:49.6]} 27. Be3 {[%clk 0:00:35.2]} 27... Bf8 {[%clk
0:01:47.5]} 28. Rxf3 {[%clk 0:00:11.6]} 28... Bxh6 {[%clk 0:01:45.4]} 29. Bxh6
{[%clk 0:00:12.5]} 29... Qe1+ {[%clk 0:01:40.5]} 30. Kg2 {[%clk 0:00:12.7]}
30... b6 {[%clk 0:01:19.9]} 31. Bg5 {[%clk 0:00:12.5]} 31... Rb8 {[%clk
0:01:11.7]} 32. Bc4 {[%clk 0:00:10.9]} 32... b5 {[%clk 0:01:06.5]} 33. Rf1
{[%clk 0:00:09.4]} 33... Qa5 {[%clk 0:00:58.3]} 34. Bxd5 {[%clk 0:00:08.5]}
34... cxd5 {[%clk 0:00:58.5]} 35. Nf6+ {[%clk 0:00:08.8]} 35... Kg7 {[%clk
0:00:57.7]} 36. Nd7 {[%clk 0:00:05.1]} 36... h6 {[%clk 0:00:48.8]} 37. Bf6+
{[%clk 0:00:05]} 37... Kh7 {[%clk 0:00:48.5]} 38. Nc5 {[%clk 0:00:05]} 38... Qd2
{[%clk 0:00:43.6]} 39. Rf2 {[%clk 0:00:03.9]} 39... b4 {[%clk 0:00:33.2]} 40. h4
{[%clk 0:00:04.6]} 40... bxa3 {[%clk 0:00:30.1]} 41. bxa3 {[%clk 0:00:05.5]}
41... Rb2 {[%clk 0:00:27]} 42. h5 {[%clk 0:00:06.4]} 42... gxh5 {[%clk
0:00:24.3]} 43. gxh5 {[%clk 0:00:05.5]} 43... Rg8+ {[%clk 0:00:23.7]} 44. Kh2
{[%clk 0:00:04.7]} 44... Qe1 {[%clk 0:00:20.8]} 45. Bh4 {[%clk 0:00:02.8]} 45...
Qd2 {[%clk 0:00:11.4]} 46. Rxf7+ {[%clk 0:00:02.2]} 46... Rg7 {[%clk 0:00:10.5]}
47. Rf2 {[%clk 0:00:02]} 47... Qe3 {[%clk 0:00:06.6]} 0-1